Cogmind - Beta 13 @@@ ROGUE MODE // 2024.03.24 @ 15:07:26 Player: 3.14 Result: Self-destructed Performance ------------- Evolutions (4) 2000 Regions Visited (15) 3000 Robots Destroyed (126) 630 Value Destroyed (2518) 2518 Prototype IDs (49) 980 Alien Tech Used (0) 0 Bonus (680) 680 TOTAL SCORE: 9808 Bonus ------- Follower Combat Kills 80 Aligned with FarCom 300 Met Data Miner 300 Cogmind --------- Core Integrity 777/850 Matter 300/300 Energy 138/140 System Corruption 0% Temperature Cool (4) Movement Flying (26) Location -5/Proximity Caves Parts ------- > --- POWER (1) -------- Light Deuterium Engine > --- PROPULSION (4) --- Improved VTOL Module Improved VTOL Module (fused) Improved VTOL Module Improved Cesium-ion Thruster > --- UTILITY (8) ------ Structural Scanner Experimental Propulsion Shielding Experimental Utility Shielding Advanced Hacking Suite Advanced Hacking Suite Advanced Hacking Suite Advanced Hacking Suite Advanced System Shield > --- WEAPON (2) ------- Longsword +1 > --- INVENTORY (5) ---- Light Nuclear Core Transport Network Coupler Improved Medium Armor Plating Improved Trap Extractor (6/6 Shock) Heavy Rocket Launcher Peak State ------------ > --- POWER ------------ Light Nuclear Core > --- PROPULSION ------- Improved VTOL Module Improved VTOL Module Improved VTOL Module Improved Cesium-ion Thruster > --- UTILITY ---------- Experimental Propulsion Shielding Experimental Utility Shielding Improved Medium Armor Plating Advanced Hacking Suite Advanced Hacking Suite Advanced Hacking Suite Advanced Hacking Suite Advanced System Shield > --- WEAPON ----------- Heavy Rocket Launcher Longsword +1 > --- INVENTORY -------- Light Deuterium Engine Structural Scanner Transport Network Coupler Improved Trap Extractor Improved Datajack [Rating: 79] Favorites ----------- Power Heavy Ion Engine Engine Heavy Ion Engine Power Core Light Nuclear Core Propulsion Light Treads Treads Light Treads Leg Aluminum Leg Flight Unit Improved Flight Unit Utility Advanced Hacking Suite Device Cooling System Storage Large Storage Unit Processor Targeting Computer Hackware Advanced Hacking Suite Protection Improved Medium Armor Plating Weapon Advanced Beam Cannon Energy Gun Heavy EM Shotgun Energy Cannon Advanced Beam Cannon Ballistic Gun Assault Rifle Launcher Heavy Rocket Launcher Slashing Weapon Longsword +1 Special Melee Weapon Improved Datajack Build | -11 -10 -10 -9 -9 -9 -8 -8 -7 -7 -7 -6 -6 -6 -6 -5 ------- Run | Yrd Mat Min Mat Min Exi Min Mat Fac Was Fac Fac Low Low Dat Pro Slots Evolved 8 | . . . 2 . . . 2 2 . . 2 . . . . Power . | . . . . . . . . . . . . . . . . Propulsion 2 | . . . 1 . . . 1 . . . . . . . . Utility 6 | . . . 1 . . . 1 2 . . 2 . . . . Weapon . | . . . . . . . . . . . . . . . . Parts Attached 117 | 1 11 8 23 3 2 2 14 23 . 15 4 4 4 2 1 Power 8 | . 1 1 1 . . . . 2 . 1 . 1 . 1 . Engine 5 | . 1 1 1 . . . . . . 1 . . . 1 . Core 3 | . . . . . . . . 2 . . . 1 . . . Reactor . | . . . . . . . . . . . . . . . . Propulsion 34 | . 4 1 10 2 . 1 7 5 . 3 1 . . . . Treads 24 | . 4 1 10 2 . 1 6 . . . . . . . . Leg 1 | . . . . . . . 1 . . . . . . . . Wheel . | . . . . . . . . . . . . . . . . Hover . | . . . . . . . . . . . . . . . . Flight 9 | . . . . . . . . 5 . 3 1 . . . . Utility 44 | . 2 . 6 1 . 1 4 13 . 9 3 1 2 1 1 Device 12 | . . . 4 1 . . . 2 . 2 1 . 1 . 1 Storage 2 | . 1 . 1 . . . . . . . . . . . . Processor 2 | . 1 . . . . 1 . . . . . . . . . Hackware 15 | . . . . . . . 1 9 . 5 . . . . . Protection 13 | . . . 1 . . . 3 2 . 2 2 1 1 1 . Artifact . | . . . . . . . . . . . . . . . . Weapon 31 | 1 4 6 6 . 2 . 3 3 . 2 . 2 2 . . Energy Gun 3 | . . . 1 . . . 2 . . . . . . . . Energy Cannon 5 | . 1 1 2 . 1 . . . . . . . . . . Ballistic Gun 12 | 1 3 4 3 . 1 . . . . . . . . . . Ballistic Cannon . | . . . . . . . . . . . . . . . . Launcher 4 | . . . . . . . . 1 . 1 . 1 1 . . Special Weapon . | . . . . . . . . . . . . . . . . Impact Weapon . | . . . . . . . . . . . . . . . . Slashing Weapon 3 | . . . . . . . 1 1 . 1 . . . . . Piercing Weapon . | . . . . . . . . . . . . . . . . Special Melee Weapon 4 | . . 1 . . . . . 1 . . . 1 1 . . Unidentified Prototypes 6 | . . . 3 . . . 1 1 . . 1 . . . . Parts Lost 4 | . . . 1 1 . . 1 . . . . . . . 1 Power . | . . . . . . . . . . . . . . . . Propulsion . | . . . . . . . . . . . . . . . . Utility 2 | . . . . 1 . . 1 . . . . . . . . Weapon 2 | . . . 1 . . . . . . . . . . . 1 Highest Loss Streak 1 | . . . 1 1 . . 1 . . . . . . . 1 To Critical Strikes . | . . . . . . . . . . . . . . . . Average Slot Usage (%) 98 | . 96 100 99 98 100 100 96 99 100 98 94 100 100 100 96 Engine 8 | . 14 14 11 11 11 11 9 . . 5 6 1 . 4 6 Core 1 | . . . . . . . . 6 7 1 . 4 6 1 . Treads 18 | . 27 28 33 33 33 33 32 . . . . . . . . Flight 11 | . . . . . . . . 29 30 30 26 26 26 26 26 Device 6 | . . . 12 17 22 15 8 . . 1 1 6 4 1 5 Storage 7 | . 14 14 11 11 11 11 9 . . . . . . . . Processor 4 | . 11 14 4 . . 6 9 . . . . . . . . Hackware 14 | . . . . . . . . 38 38 38 33 33 33 33 33 Protection 4 | . . . 3 3 . . 8 4 7 3 13 13 14 18 13 Energy Cannon 5 | . 4 4 12 22 13 11 4 . . . . . . . . Ballistic Gun 7 | . 23 20 8 . 8 11 4 . . . . . . . . Slashing Weapon 2 | . . . . . . . . 6 7 7 6 6 6 6 6 Special Melee Weapon 2 | . . 3 . . . . . 6 7 7 6 5 5 6 2 Naked Turns . | . . . . . . . . . . . . . . . . Heaviest Build 45 | 12 20 23 45 45 39 38 45 43 16 20 18 18 18 18 18 Greatest Support 89 | 20 40 40 63 63 63 63 89 88 20 20 21 21 21 21 21 Greatest Overweight (x) 1 | . . . . . . . . 1 . . . . . . . Average Overweight (x) . | . . . . . . . . . . . . . . . . Largest Inventory Capacity 15 | 8 10 10 15 15 15 15 15 15 5 5 5 5 5 5 5 Average Capacity 9 | 8 9 10 14 15 15 15 15 5 5 5 5 5 5 5 5 Most Carried 15 | 6 10 10 15 15 15 15 15 15 5 5 5 5 5 5 5 Average Carried 9 | 6 8 9 13 15 14 15 14 4 5 4 4 5 5 5 5 Final Capacity 15 | 8 10 10 15 15 15 15 15 5 5 5 5 5 5 5 5 Final Carried 15 | 6 10 10 15 15 15 15 15 5 5 5 5 5 5 5 5 Class Distribution -------------------- 48% | Mutant 25% | Wizard-Sprinter 14% | Hacker-Sprinter 11% | Scavenger-Mutant Dominant Class ---------------- Mutant | -10/Materials Scavenger-Mutant | -10/Mines Mutant | -9/Materials Mutant | -9/Mines Mutant | -9/Exiles Mutant | -8/Mines Mutant | -8/Materials Hacker-Sprinter | -7/Factory Hacker-Sprinter | -7/Waste Wizard-Sprinter | -7/Factory Wizard-Sprinter | -6/Factory Wizard-Sprinter | -6/Lower Caves Wizard-Sprinter | -6/Lower Caves Wizard-Sprinter | -6/Data Miner Wizard-Sprinter | -5/Proximity Caves Resources | -11 -10 -10 -9 -9 -9 -8 -8 -7 -7 -7 -6 -6 -6 -6 -5 ----------- Run | Yrd Mat Min Mat Min Exi Min Mat Fac Was Fac Fac Low Low Dat Pro Matter Collected 2181 | 200 413 180 448 30 10 19 135 321 . 208 60 78 22 . 57 Remotely 29 | . . . . 10 . 19 . . . . . . . . . Salvage Created 4156 | . 417 95 1483 297 . . 559 650 . 400 194 35 18 . 8 Parts 284 | . 36 6 94 11 . . 36 36 . 43 16 4 1 . 1 Haulers Intercepted 15 | . 2 . 6 . . . 2 2 . 2 1 . . . . Recyclers Shooed 7 | . 1 1 3 1 . . . . . 1 . . . . . Parts Field Recycled . | . . . . . . . . . . . . . . . . Retrieved Matter . | . . . . . . . . . . . . . . . . Parts Self-Destructed 6 | . . . . . . . . . . . . 2 1 . 3 Prevented 1 | . . . . . . . . . . . . 1 . . . Kills | -11 -10 -10 -9 -9 -9 -8 -8 -7 -7 -7 -6 -6 -6 -6 -5 ------- Run | Yrd Mat Min Mat Min Exi Min Mat Fac Was Fac Fac Low Low Dat Pro Combat Hostiles Destroyed 70 | . 12 2 26 7 . . 9 5 . 3 . 4 1 . 1 Melee 2 | . . . . . . . . 1 . . . . . . 1 Guns 33 | . 12 2 13 . . . 6 . . . . . . . . Cannons 22 | . . . 13 7 . . 2 . . . . . . . . AOE 13 | . . . . . . . 1 4 . 3 . 4 1 . . Classes Destroyed 14 | . 5 . 6 . . . 1 1 . . . . . . 1 Worker 7 | . 1 . . . . . . 4 . 1 1 . . . . Builder 8 | . . . 3 . . . . 1 . 1 3 . . . . Tunneler 3 | . . . 1 . . . . 1 . 1 . . . . . Hauler 15 | . 2 . 6 . . . 2 2 . 2 1 . . . . Recycler 9 | . . . 2 1 . . . 4 . 2 . . . . . Mechanic 1 | . . . 1 . . . . . . . . . . . . Operator 8 | . 2 . 3 . . . 1 1 . 1 . . . . . Drone 1 | . . . . . . . . . . . . . . . 1 Watcher 5 | . . . 1 . . . . 1 . 2 1 . . . . Swarmer 34 | . 9 . 6 4 . . 3 4 . 3 . 4 1 . . Grunt 24 | . 3 2 14 3 . . 2 . . . . . . . . Sentry 9 | . . . 6 . . . 3 . . . . . . . . Hunter 1 | . . . . . . . 1 . . . . . . . . Programmer 1 | . . . . . . . . 1 . . . . . . . Best Kill Streak 11 | . 4 2 11 4 . . 4 4 . 5 3 4 1 . 1 Combat Bots Only 9 | . 3 2 9 4 . . 3 4 . 3 . 4 1 . 1 Max Kills in Single Turn 3 | . 1 1 2 1 . . 1 3 . 3 1 2 1 . 1 Gunslinging . | . . . . . . . . . . . . . . . . Exploded 3 | . . . . . . . 1 3 . 2 . 2 1 . . Melee 1 | . . . . . . . . 1 . . . . . . 1 Uniques/NPCs Destroyed . | . . . . . . . . . . . . . . . . Combat | -11 -10 -10 -9 -9 -9 -8 -8 -7 -7 -7 -6 -6 -6 -6 -5 -------- Run | Yrd Mat Min Mat Min Exi Min Mat Fac Was Fac Fac Low Low Dat Pro Hostile Shots Fired 330 | . 68 8 104 38 . . 44 8 . 1 . 31 2 5 21 Missed 108 | . 14 1 31 10 . . 11 4 . 1 . 17 . 4 15 Damage Taken 2388 | . 457 108 682 266 . . 466 62 . 34 . 140 36 50 87 Core 387 | . 41 14 149 29 . . 67 14 . . . 5 18 50 . Absorbed by Shields 240 | . . . 240 . . . . . . . . . . . . Redirected to Shielding 50 | . . . . . . . . . . . . 20 . . 30 Regen/Repaired (Parts) 131 | . 131 . . . . . . . . . . . . . . Core Remaining (%) 83 | 100 . 78 . . . 55 87 . . 98 . . . . . Volleys Fired 193 | . 51 7 81 22 . . 25 2 . 2 . 2 1 . . Largest 2 | . 2 2 2 2 . . 2 1 . 1 . 1 1 . . Hottest 136 | . 80 43 136 136 . . 100 39 . 39 . 39 39 . . Shots Fired 380 | . 103 14 162 44 . . 50 2 . 2 . 2 1 . . Gun 258 | . 102 14 96 . . . 46 . . . . . . . . Cannon 115 | . 1 . 66 44 . . 4 . . . . . . . . Launcher 7 | . . . . . . . . 2 . 2 . 2 1 . . Special . | . . . . . . . . . . . . . . . . Kinetic 198 | . 102 14 78 . . . 4 . . . . . . . . Thermal 133 | . 1 . 84 44 . . 4 . . . . . . . . Explosive 7 | . . . . . . . . 2 . 2 . 2 1 . . Electromagnetic 42 | . . . . . . . 42 . . . . . . . . Robot Hit Streak 13 | . 13 7 12 8 . . 13 3 . . . . . . . Robot Miss Streak 6 | . 3 2 4 6 . . 3 . . . . . 1 . . Penetration Max . | . . . . . . . . . . . . . . . . Secondary Targets 1 | . . . 1 . . . . . . . . . . . . Max Gunslinging Chain 1 | . . . 1 . . . . . . . . . . . . Shots Hit Robots 296 | . 60 10 108 23 . . 41 22 . 14 15 . . 1 2 Core Hits 150 | . 23 7 54 9 . . 19 12 . 12 5 6 3 . . Critical Kills . | . . . . . . . . . . . . . . . . Critical Parts Destroyed 2 | . 1 . 1 . . . . . . . . . . . . Critical Strikes 4 | . 1 . 1 . . . . . . 1 1 . . . . Destroy 2 | . 1 . 1 . . . . . . . . . . . . Sever 2 | . . . . . . . . . . 1 1 . . . . Melee Attacks 164 | . . . . . . . 1 43 . 41 34 6 10 17 12 Impact . | . . . . . . . . . . . . . . . . Slashing 162 | . . . . . . . 1 42 . 41 34 6 9 17 12 Piercing . | . . . . . . . . . . . . . . . . Sneak Attacks 28 | . . . . . . . 1 14 . 7 5 . . 1 . Combat Hostiles . | . . . . . . . . . . . . . . . . Follow-up Attacks . | . . . . . . . . . . . . . . . . Damage Inflicted 9398 | . 832 130 2056 517 . . 969 2040 . 1374 917 318 62 85 98 Guns 2576 | . 774 125 1050 . . . 627 . . . . . . . . Cannons 1573 | . 17 . 949 517 . . 90 . . . . . . . . Explosions 1069 | . . . . . . . 145 272 . 272 . 318 62 . . Melee 4077 | . . . . . . . 107 1768 . 1102 917 . . 85 98 Ramming 103 | . 41 5 57 . . . . . . . . . . . . Kinetic 1702 | . 774 125 769 . . . 34 . . . . . . . . Thermal 1999 | . 17 . 1230 517 . . 235 . . . . . . . . Explosive 924 | . . . . . . . . 272 . 272 . 318 62 . . Electromagnetic 593 | . . . . . . . 593 . . . . . . . . Impact . | . . . . . . . . . . . . . . . . Slashing 4077 | . . . . . . . 107 1768 . 1102 917 . . 85 98 Piercing . | . . . . . . . . . . . . . . . . Highest Corruption 10 | . 3 3 . . . . . . 10 10 . . . . . Average Corruption 4 | . 2 3 . . . . . . 10 7 . . . . . Corruption Purged 10 | . . . . . . . . . . 10 . . . . . Corruption Blocked . | . . . . . . . . . . . . . . . . Effects 60 | . 19 14 . . . . . . 1 26 . . . . . Message Errors 13 | . 4 4 . . . . . . . 5 . . . . . Matter Fused 17 | . 5 5 . . . . . . . 7 . . . . . Heat Flow Errors 6 | . 3 2 . . . . . . . 1 . . . . . Energy Discharges 4 | . 2 . . . . . . . . 2 . . . . . Parts Fused 1 | . . . . . . . . . . 1 . . . . . Data Loss (minor) 9 | . 3 3 . . . . . . 1 2 . . . . . Data Loss (major) 3 | . . . . . . . . . . 3 . . . . . Misfires 1 | . 1 . . . . . . . . . . . . . . Alerts 4 | . 1 . . . . . . . . 3 . . . . . Misdirections 2 | . . . . . . . . . . 2 . . . . . Overload Shots . | . . . . . . . . . . . . . . . . Overflow Damage 901 | . . . 1 7 . . 57 582 . 54 142 . . 25 33 Projectiles 8 | . . . 1 7 . . . . . . . . . . . Explosions 53 | . . . . . . . . 53 . . . . . . . Melee 840 | . . . . . . . 57 529 . 54 142 . . 25 33 Knockbacks . | . . . . . . . . . . . . . . . . Impact . | . . . . . . . . . . . . . . . . Kinetic . | . . . . . . . . . . . . . . . . Secondary . | . . . . . . . . . . . . . . . . Self-Inflicted Damage . | . . . . . . . . . . . . . . . . Shots . | . . . . . . . . . . . . . . . . Rammed 23 | . 12 2 9 . . . . . . . . . . . . Targets Rammed 25 | . 12 2 11 . . . . . . . . . . . . Kicked . | . . . . . . . . . . . . . . . . Crushed 2 | . . . 2 . . . . . . . . . . . . Highest Temperature 266 | . 199 185 266 132 . . 30 . . 125 . . 18 . . Average Temperature 61 | . 99 49 60 53 . . 12 . . 62 . . 13 . . Received Heat Transfer 582 | . 48 54 246 60 . . 108 9 . . . 12 36 . 9 Siege Activations . | . . . . . . . . . . . . . . . . Robots Corrupted . | . . . . . . . . . . . . . . . . Combat Hostiles . | . . . . . . . . . . . . . . . . Parts Fried 5 | . . . . . . . 5 . . . . . . . . Impact Corruptions . | . . . . . . . . . . . . . . . . Robots Melted . | . . . . . . . . . . . . . . . . Combat Hostiles . | . . . . . . . . . . . . . . . . Parts Melted 7 | . . . 5 2 . . . . . . . . . . . Heat Transferred 3443 | . 37 . 2220 888 . . 298 . . . . . . . . Parts Sabotaged . | . . . . . . . . . . . . . . . . Parts Stolen . | . . . . . . . . . . . . . . . . Parts Stripped . | . . . . . . . . . . . . . . . . Power Chain Reactions 3 | . . . . . . . 3 . . . . . . . . Alert | -11 -10 -10 -9 -9 -9 -8 -8 -7 -7 -7 -6 -6 -6 -6 -5 ------- Run | Yrd Mat Min Mat Min Exi Min Mat Fac Was Fac Fac Low Low Dat Pro Peak Influence 329 | . 323 65 308 272 . . 204 329 115 246 191 . . . . Initial 102 | . . . . 102 . . . 37 85 80 38 . . . . Average 113 | . 111 29 153 243 . . 62 99 104 126 109 . . . . Maximum Alert Level 1 | . 1 . 1 1 . . 1 1 . 1 . . . . . Low Security (%) 80 | 100 84 100 59 28 . 100 96 82 100 88 100 . . . . Level 1 19 | . 15 . 40 71 . . 3 17 . 11 . . . . . Level 2 . | . . . . . . . . . . . . . . . . Level 3 . | . . . . . . . . . . . . . . . . Level 4 . | . . . . . . . . . . . . . . . . Level 5 . | . . . . . . . . . . . . . . . . High Security . | . . . . . . . . . . . . . . . . Max Security . | . . . . . . . . . . . . . . . . Squads Dispatched 28 | . 2 . 3 . . . 2 9 . 8 4 . . . . Investigation 13 | . . . . . . . . 5 . 6 2 . . . . Extermination 3 | . . . . . . . . 1 . 1 1 . . . . Reinforcement 10 | . 2 . 3 . . . 2 2 . . 1 . . . . Assault . | . . . . . . . . . . . . . . . . Garrison 2 | . . . . . . . . 1 . 1 . . . . . Intercept . | . . . . . . . . . . . . . . . . Searches Triggered . | . . . . . . . . . . . . . . . . Construction Impeded . | . . . . . . . . . . . . . . . . Haulers Reinforced 1 | . . . . . . . . 1 . . . . . . . Active Scanning Responses . | . . . . . . . . . . . . . . . . Cargo Convoy Interrupts . | . . . . . . . . . . . . . . . . Stealth | -11 -10 -10 -9 -9 -9 -8 -8 -7 -7 -7 -6 -6 -6 -6 -5 --------- Run | Yrd Mat Min Mat Min Exi Min Mat Fac Was Fac Fac Low Low Dat Pro Distress Signals 14 | . 2 . 2 . . . 2 5 . 3 . . . . . Communications Jammed . | . . . . . . . . . . . . . . . . Distress Signals . | . . . . . . . . . . . . . . . . Times Spotted 166 | . 29 3 46 5 . . 12 24 4 17 5 10 3 4 4 Peak Tracking Total 11 | . 4 2 11 3 . . 4 8 4 4 1 4 2 4 2 Tactical Retreats 23 | . 2 . 2 . . . . 10 . 3 . 3 2 . 1 Traps | -11 -10 -10 -9 -9 -9 -8 -8 -7 -7 -7 -6 -6 -6 -6 -5 ------- Run | Yrd Mat Min Mat Min Exi Min Mat Fac Was Fac Fac Low Low Dat Pro Traps Triggered 7 | . 2 . 2 . . . . 2 . 1 . . . . . Indirectly . | . . . . . . . . . . . . . . . . Trap Hack Attempts 80 | . . 57 . . . . . 23 . . . . . . . Triggered . | . . . . . . . . . . . . . . . . Disarmed . | . . . . . . . . . . . . . . . . Reprogrammed 13 | . . 5 . . . . . 8 . . . . . . . Reused 1 | . . . . . . . . 1 . . . . . . . Traps Extracted 6 | . . . . . . . . 6 . . . . . . . Installed . | . . . . . . . . . . . . . . . . Triggered 3 | . . . . . . . . 1 . . . 1 . . 1 Most Traps Carried 6 | . . . . . . . . 6 6 6 6 6 6 6 6 Machines | -11 -10 -10 -9 -9 -9 -8 -8 -7 -7 -7 -6 -6 -6 -6 -5 ---------- Run | Yrd Mat Min Mat Min Exi Min Mat Fac Was Fac Fac Low Low Dat Pro Machines Disabled 12 | . 1 . 5 1 . . 1 1 . . 2 . . 1 . Max in Single Turn 1 | . 1 . 1 1 . . 1 1 . . 1 . . 1 . Garrison Access 3 | . . . . . . . . 2 . . 1 . . . . Machines Repaired . | . . . . . . . . . . . . . . . . Machines Dismantled . | . . . . . . . . . . . . . . . . Machines Sabotaged . | . . . . . . . . . . . . . . . . Overloaded Fab Kills . | . . . . . . . . . . . . . . . . Hacking | -11 -10 -10 -9 -9 -9 -8 -8 -7 -7 -7 -6 -6 -6 -6 -5 --------- Run | Yrd Mat Min Mat Min Exi Min Mat Fac Was Fac Fac Low Low Dat Pro Machines Accessed 58 | . 6 1 6 . 3 . 1 16 . 11 9 . 1 4 . Terminals 33 | . 5 . 5 . . . 1 10 . 5 7 . . . . Fabricators 10 | . . . . . . . . 4 . 5 1 . . . . Repair Stations 1 | . 1 . . . . . . . . . . . . . . Recycling Units . | . . . . . . . . . . . . . . . . Scanalyzers 2 | . . . 1 . . . . . . 1 . . . . . Garrison Access 3 | . . . . . . . . 2 . . 1 . . . . Total Hacks 205 | . 19 1 22 . 3 . 1 59 . 41 28 . 1 30 . Successful 155 | . 11 1 12 . 3 . . 44 . 32 21 . 1 30 . Failed 50 | . 8 . 10 . . . 1 15 . 9 7 . . . . Catastrophic 4 | . 1 . . . . . . 2 . . 1 . . . . Database Lockouts . | . . . . . . . . . . . . . . . . Manual 107 | . 9 . 13 . 1 . . 40 . 21 23 . . . . Terminals 120 | . 14 . 18 . . . 1 41 . 22 24 . . . . Fabricators 34 | . . . . . . . . 15 . 16 3 . . . . Repair Stations 5 | . 5 . . . . . . . . . . . . . . Recycling Units . | . . . . . . . . . . . . . . . . Scanalyzers 7 | . . . 4 . . . . . . 3 . . . . . Garrison Access 4 | . . . . . . . . 3 . . 1 . . . . Terminal Hacks 93 | . 6 1 6 . 3 . . 21 . 14 11 . 1 30 . Record 13 | . . . . . 2 . . . . . . . . 11 . Part Schematic 17 | . . . . . . . . 2 . 2 2 . . 11 . Robot Schematic 5 | . . . . . . . . . . . . . . 5 . Robot Analysis 3 | . 2 . 1 . . . . . . . . . . . . Prototype ID Bank 8 | . 2 . 3 . . . . . . . . . . 3 . Open Door 2 | . . 1 . . . . . . . . . . 1 . . Level Access Points 1 | . . . . . . . . . . 1 . . . . . Branch Access Points 5 | . 1 . . . . . . 1 . 1 2 . . . . Machine Index 3 | . . . . . . . . 1 . 1 1 . . . . Terminal Index 3 | . . . . . . . . 1 . 1 1 . . . . Fabricator Index 1 | . . . . . . . . 1 . . . . . . . Alert Level 1 | . . . . . . . . . . 1 . . . . . Unreport Threat 3 | . 1 . 2 . . . . . . . . . . . . Locate Traps 2 | . . . . . . . . 2 . . . . . . . Dispatch Records 4 | . . . . . . . . 3 . 1 . . . . . Transport Status 3 | . . . . . . . . 3 . . . . . . . Recall Investigation 10 | . . . . . . . . 4 . 5 1 . . . . Recall Extermination 3 | . . . . . . . . 1 . 1 1 . . . . Recall Reinforcements 2 | . . . . . . . . 1 . . 1 . . . . Hauler Manifests 1 | . . . . . . . . . . . 1 . . . . Zone Layout 2 | . . . . . . . . 1 . . 1 . . . . Derelict Proto ID Bank 1 | . . . . . 1 . . . . . . . . . . Fabricator Hacks 21 | . . . . . . . . 9 . 10 2 . . . . Load Schematic 11 | . . . . . . . . 5 . 5 1 . . . . Build 10 | . . . . . . . . 4 . 5 1 . . . . Repair Station Hacks 4 | . 4 . . . . . . . . . . . . . . Scan Component 2 | . 2 . . . . . . . . . . . . . . Repair 2 | . 2 . . . . . . . . . . . . . . Recycling Unit Hacks . | . . . . . . . . . . . . . . . . Scanalyzer 7 | . . . 4 . . . . . . 3 . . . . . Insert Component 3 | . . . 2 . . . . . . 1 . . . . . Analyze 4 | . . . 2 . . . . . . 2 . . . . . Garrison Access Hacks 3 | . . . . . . . . 2 . . 1 . . . . Seal Access 3 | . . . . . . . . 2 . . 1 . . . . Unauthorized Hacks 27 | . 1 . 2 . . . . 12 . 5 7 . . . . Terminals 19 | . 1 . 2 . . . . 8 . 2 6 . . . . Assimilate 8 | . . . . . . . . 4 . 1 3 . . . . Botnet 8 | . . . 1 . . . . 3 . 1 3 . . . . Operators 3 | . 1 . 1 . . . . 1 . . . . . . . Fabricators 8 | . . . . . . . . 4 . 3 1 . . . . Prioritize 6 | . . . . . . . . 2 . 3 1 . . . . Liberate 1 | . . . . . . . . 1 . . . . . . . Recompile 1 | . . . . . . . . 1 . . . . . . . Repair Stations . | . . . . . . . . . . . . . . . . Recycling Units . | . . . . . . . . . . . . . . . . Scanalyzers . | . . . . . . . . . . . . . . . . Garrison Access . | . . . . . . . . . . . . . . . . Data Cores Recovered 1 | . . . . . . . . . . 1 . . . . . Used . | . . . . . . . . . . . . . . . . Hacking Detections 34 | . 6 . 4 . . . 1 9 . 9 5 . . . . Full Trace Events 12 | . . . . . . . . 4 . 6 2 . . . . Feedback Events . | . . . . . . . . . . . . . . . . Feedback Blocked . | . . . . . . . . . . . . . . . . Robot Schematics Acquired 5 | . . . . . . . . . . . . . . 5 . Robots Built . | . . . . . . . . . . . . . . . . Authchips . | . . . . . . . . . . . . . . . . Time . | . . . . . . . . . . . . . . . . Total Robot Build Rating . | . . . . . . . . . . . . . . . . Part Schematics Acquired 20 | . . . 2 . . . . 2 . 3 2 . . 11 . Parts Built 10 | . . . . . . . . 4 . 5 1 . . . . Authchips 1 | . . . . . . . . 1 . . . . . . . Time 490 | . . . . . . . . 164 . 288 38 . . . . Total Part Build Rating 54 | . . . . . . . . 20 . 29 5 . . . . Parts Repaired 2 | . 2 . . . . . . . . . . . . . . Time 52 | . 52 . . . . . . . . . . . . . . Parts Recycled . | . . . . . . . . . . . . . . . . Recycled Matter . | . . . . . . . . . . . . . . . . Retrieved Matter . | . . . . . . . . . . . . . . . . Retrieved Components . | . . . . . . . . . . . . . . . . Parts Scanalyzed 3 | . . . 2 . . . . . . 1 . . . . . Part Schematics Acquired 3 | . . . 2 . . . . . . 1 . . . . . Parts Damaged . | . . . . . . . . . . . . . . . . Bothacking | -11 -10 -10 -9 -9 -9 -8 -8 -7 -7 -7 -6 -6 -6 -6 -5 ------------ Run | Yrd Mat Min Mat Min Exi Min Mat Fac Was Fac Fac Low Low Dat Pro Used RIF Installer . | . . . . . . . . . . . . . . . . Robots Hacked 1 | . . . . . . . . 1 . . . . . . . Non-combat 1 | . . . . . . . . 1 . . . . . . . Combat . | . . . . . . . . . . . . . . . . Robot Hacks Applied 1 | . . . . . . . . 1 . . . . . . . find_chute 1 | . . . . . . . . 1 . . . . . . . Relay Couplers Released . | . . . . . . . . . . . . . . . . Fabnet Peak Effective % . | . . . . . . . . . . . . . . . . Robots Rewired . | . . . . . . . . . . . . . . . . Allies Hacked . | . . . . . . . . . . . . . . . . Hacks Repelled . | . . . . . . . . . . . . . . . . Allies | -11 -10 -10 -9 -9 -9 -8 -8 -7 -7 -7 -6 -6 -6 -6 -5 -------- Run | Yrd Mat Min Mat Min Exi Min Mat Fac Was Fac Fac Low Low Dat Pro Total Allies 9 | . . . . . . . . 3 . 4 2 . . . . Largest Group 3 | . . . . . . . . 2 . 3 2 2 . . . Highest-Rated Group 93 | . . . . . . . . 36 . 93 20 20 . . . Highest-Rated Ally 31 | . . . . . . . . 26 . 31 10 10 . . . Total Orders . | . . . . . . . . . . . . . . . . Ally Attacks 18 | . . . . . . . . . . 18 . . . . . Total Damage 260 | . . . . . . . . . . 260 . . . . . Kills 5 | . . . . . . . . . . 5 . . . . . Allies Corrupted . | . . . . . . . . . . . . . . . . Allies Melted . | . . . . . . . . . . . . . . . . Intel | -11 -10 -10 -9 -9 -9 -8 -8 -7 -7 -7 -6 -6 -6 -6 -5 ------- Run | Yrd Mat Min Mat Min Exi Min Mat Fac Was Fac Fac Low Low Dat Pro Robot Analysis Total 3 | . 2 . 1 . . . . . . . . . . . . Derelict Logs Recovered 3 | . . 1 . 1 . . . . . . . 1 . . . Drone Launches . | . . . . . . . . . . . . . . . . Drone Recoveries . | . . . . . . . . . . . . . . . . Exploration | -11 -10 -10 -9 -9 -9 -8 -8 -7 -7 -7 -6 -6 -6 -6 -5 ------------- Run | Yrd Mat Min Mat Min Exi Min Mat Fac Was Fac Fac Low Low Dat Pro Turns Passed 8450 | 2 1259 711 1507 370 584 165 476 1210 25 1201 395 177 165 93 110 Spaces Moved 8634 | 1 614 247 726 185 362 101 235 2138 75 1465 1022 596 441 119 307 Core . | . . . . . . . . . . . . . . . . Treads 2463 | . 591 247 726 185 362 101 235 16 . . . . . . . Legs 24 | 1 23 . . . . . . . . . . . . . . Wheels . | . . . . . . . . . . . . . . . . Hover . | . . . . . . . . . . . . . . . . Flight 6147 | . . . . . . . . 2122 75 1465 1022 596 441 119 307 Fastest Speed 26 | 120 120 160 160 160 160 160 145 29 29 26 26 26 26 26 26 Average Speed 65 | 120 158 160 160 160 160 160 157 30 29 28 26 26 26 26 26 Slowest Speed 160 | 120 160 160 160 160 160 160 160 145 29 29 26 26 26 26 26 Overloaded Moves . | . . . . . . . . . . . . . . . . Propulsion Burnouts . | . . . . . . . . . . . . . . . . Robots Hopped 10 | . . . . . . . . 6 2 1 . . . . 1 Cave-ins Triggered . | . . . . . . . . . . . . . . . . Exploration Rate (%) 49 | 2 87 43 66 39 66 29 37 42 78 28 26 74 62 80 36 Regions Visited 15 Branch Regions 8 Pre-discovered Areas 4 | . . 1 . 1 1 . . . . . . . . 1 . Known Exits Taken 3 | . 1 . . . . . . . . 1 1 . . . . Unknown Exits Taken 10 | 1 . 1 1 1 1 1 1 . . . . 1 1 1 . Scrap Searched 9 | . . 1 . 1 . 1 . . . . . 4 1 . 1 Spaces Dug 87 | . . . . . . . . 21 . 26 17 6 9 . 8 Terrain Destroyed 180 | . . . . . . . . 46 . 53 17 34 22 . 8 Melee 87 | . . . . . . . . 21 . 26 17 6 9 . 8 Projectile . | . . . . . . . . . . . . . . . . AOE 93 | . . . . . . . . 25 . 27 . 28 13 . . Terrain Rammed . | . . . . . . . . . . . . . . . . Walls Destroyed . | . . . . . . . . . . . . . . . . Machines Disabled . | . . . . . . . . . . . . . . . . Actions | -11 -10 -10 -9 -9 -9 -8 -8 -7 -7 -7 -6 -6 -6 -6 -5 --------- Run | Yrd Mat Min Mat Min Exi Min Mat Fac Was Fac Fac Low Low Dat Pro Total 10866 | 1 792 554 915 215 367 106 292 2662 77 2198 1116 608 478 162 323 Wait 1502 | . 83 215 32 3 . . 4 393 3 665 52 . 23 25 4 Move 8601 | . 613 246 725 184 361 100 234 2126 71 1462 1021 595 440 118 305 Hop 9 | . . . . . . . . 6 1 1 . . . . 1 Pick Up 56 | . 12 7 14 1 2 1 3 9 1 3 3 . . . . Fast Attach 27 | . 2 2 7 1 . 1 6 2 . 5 1 . . . . Attach 19 | . 1 1 2 . 1 . 1 11 . 1 1 . . . . Detach 2 | . . . . . . . . 1 . 1 . . . . . Swap 72 | 1 8 5 15 2 1 1 7 10 . 9 2 4 4 2 1 Drop 98 | . 10 12 28 2 2 3 11 18 1 8 2 1 . . . Fire 193 | . 51 7 81 22 . . 25 2 . 2 . 2 1 . . Melee 164 | . . . . . . . 1 43 . 41 34 6 10 17 12 Ram . | . . . . . . . . . . . . . . . . Kick . | . . . . . . . . . . . . . . . . Crush 25 | . 12 2 11 . . . . . . . . . . . . Escape Stasis 18 | . . . . . . . . 18 . . . . . . . Rewire . | . . . . . . . . . . . . . . . . Trap 80 | . . 57 . . . . . 23 . . . . . . . Miscellaneous . | . . . . . . . . . . . . . . . . Route ------- -11/Scrapyard -10/Materials (discovered 3 exits: *Mat x2 / *Min) -10/Mines -9/Materials (discovered 2 exits: [*Min] / [*Sto]) -9/Mines (discovered 2 exits: *Mat / *Exi) -9/Exiles (discovered 2 exits: [*Min x2]) -8/Mines -8/Materials -7/Factory (discovered 2 exits: Low x2) -7/Waste -7/Factory (discovered 6 exits: *Fac x4 / Low x2) -6/Factory (discovered 3 exits: [*Fac] / *Low x2) -6/Lower Caves -6/Lower Caves -6/Data Miner -5/Proximity Caves History --------- Turn | Location | Event 3 | -11/Scrapyard | Discovered new exit (range 0) 3 | -11/Scrapyard | Entered Materials 307 | -10/Materials | Build established: Mutant 545 | -10/Materials | Identified exit to Mines 606 | -10/Materials | Repaired Lgt. Treads 633 | -10/Materials | Repaired Assault Rifle 669 | -10/Materials | Discovered new exit (range 9) 878 | -10/Materials | Discovered new exit (range 6) 1262 | -10/Materials | Entered Mines 1266 | -10/Mines | Joined a pair of Derelicts in attacking an 0b10 outpost 1326 | -10/Mines | Learned location of Zion (-7) 1419 | -10/Mines | Met a Derelict who couldn't figure out how to use a Trap Extractor 1685 | -10/Mines | Assembled infested the area 1898 | -10/Mines | Build established: Scavenger-Mutant 1958 | -10/Mines | Discovered new exit (range 2) 1973 | -10/Mines | Entered Materials 1973 | -9/Materials | Evolved 2 slots: Propulsion x1, Utility x1 1975 | -9/Materials | Discovered new exit (range 15) 2598 | -9/Materials | Discovered new exit (range 15) 2754 | -9/Materials | Build established: Mutant 2831 | -9/Materials | Destroyed 9 combat bots 3480 | -9/Materials | Entered Mines 3559 | -9/Mines | Met a Derelict bent on vengeance 3605 | -9/Mines | Learned location of Storage (-9) 3752 | -9/Mines | Discovered new exit (range 16) 3843 | -9/Mines | Deemed a non-threat by the Exiles lab entrance 3843 | -9/Mines | Discovered new exit (range 5) 3850 | -9/Mines | Entered Exiles 3871 | -9/Exiles | Discovered new exit (range 15) 3894 | -9/Exiles | Met 8R-AWN 3916 | -9/Exiles | Met EX-HEX 4046 | -9/Exiles | Met EX-BIN 4066 | -9/Exiles | Met EX-DEC 4229 | -9/Exiles | Aligned with FarCom system 4230 | -9/Exiles | Given EX-Vault access code 4267 | -9/Exiles | Opened EX-Vault 4281 | -9/Exiles | Found Longsword +1 4315 | -9/Exiles | Warned to stay clear of 0b10 Research branches 4421 | -9/Exiles | Discovered new exit (range 10) 4434 | -9/Exiles | Left Exiles lab with Longsword +1 4434 | -9/Exiles | Entered Mines 4585 | -8/Mines | Discovered new exit (range 9) 4599 | -8/Mines | Entered Materials 4599 | -8/Materials | Evolved 2 slots: Propulsion x1, Utility x1 5042 | -8/Materials | Discovered new exit (range 13) 5075 | -8/Materials | Entered Factory 5075 | -7/Factory | Evolved 2 slots: Utility x2 5357 | -7/Factory | Identified exit to Lower Caves 5388 | -7/Factory | Build established: Hacker-Sprinter 5589 | -7/Factory | Fabricated Imp. Hacking Suite? 5661 | -7/Factory | Fabricated Imp. Hacking Suite? 5819 | -7/Factory | Garrison activated, responded to threat 5985 | -7/Factory | Fabricated Imp. Hacking Suite? 6147 | -7/Factory | Fabricated Imp. System Shield? 6285 | -7/Factory | Manually triggered Chute Trap 6285 | -7/Factory | Sucked down chute 6285 | -7/Factory | Entered Waste 6290 | -7/Waste | Spotted C-40 Crusher 6295 | -7/Waste | Spotted C-40 Crusher 6296 | -7/Waste | Spotted C-40 Crusher 6300 | -7/Waste | EMP discharged 6300 | -7/Waste | System corruption reached 10% 6300 | -7/Waste | Spotted C-40 Crusher 6308 | -7/Waste | Spotted C-40 Crusher 6308 | -7/Waste | Discovered new exit (range 10) 6310 | -7/Waste | Entered Factory 6367 | -7/Factory | Garrison activated, responded to threat 6520 | -7/Factory | Fabricated Adv. Hacking Suite? 6526 | -7/Factory | Fabricated Adv. Hacking Suite (x1) 6652 | -7/Factory | Fabricated Adv. Hacking Suite? 6766 | -7/Factory | Build established: Wizard-Sprinter 7023 | -7/Factory | Fabricated Adv. System Shield? 7054 | -7/Factory | Allied Derelicts emerged from ambush trap array 7063 | -7/Factory | Identified exit to Factory 7371 | -7/Factory | Fabricated Exp. Utility Shielding? 7511 | -7/Factory | Entered another Factory area 7511 | -6/Factory | Evolved 2 slots: Utility x2 7554 | -6/Factory | Identified exit to Lower Caves 7800 | -6/Factory | Fabricated Exp. Propulsion Shielding? 7848 | -6/Factory | Discovered new exit (range 15) 7906 | -6/Factory | Entered Lower Caves 7906 | -6/Lower Caves | Accompanied by 2 allies 8026 | -6/Lower Caves | Attracted the attention of an 0b10 checkpoint 8054 | -6/Lower Caves | Learned Factory stockpile data 8080 | -6/Lower Caves | Discovered new exit (range 14) 8083 | -6/Lower Caves | Entered another Lower Caves area 8084 | -6/Lower Caves | Encountered a Warlord checkpoint 8139 | -6/Lower Caves | Attracted the attention of an 0b10 checkpoint 8245 | -6/Lower Caves | Discovered new exit (range 15) 8248 | -6/Lower Caves | Entered Data Miner 8248 | -6/Data Miner | Discovered new exit (range 6) 8253 | -6/Data Miner | Met Data Miner 8259 | -6/Data Miner | Learned location of Section 7 (-2) 8259 | -6/Data Miner | Acquired the access code to Warlord's prototype stash 8264 | -6/Data Miner | Received God Mode back door access code from Data Miner 8272 | -6/Data Miner | Data Conduit disabled 8341 | -6/Data Miner | Entered Proximity Caves 8343 | -5/Proximity Caves | Spotter reported a threat 8344 | -5/Proximity Caves | Spotter reported a threat 8371 | -5/Proximity Caves | Spotted B-75 Beast 8451 | -5/Proximity Caves | Self-destructed Last Messages --------------- Now off with you. 08270_ Sneak attack on Data Miner. 08270_ Destroyed Lgt. Angular Momentum Engine. 08270_ Data Miner disappears through a trap door. 08272_ Data Conduit disabled. LOCATION=UNKNOWN GOAL=ESCAPE 08342_ N-01 Spotter is scanning... 08343_ N-01 Spotter sends a signal. 08343_ ALERT: Unidentified potential threat approaching Complex 0b10. 08344_ N-01 Spotter sends a signal. 08344_ ALERT: Unidentified potential threat approaching Complex 0b10. 08349_ Destroyed Hover Unit. 08349_ N-01 Spotter destroyed. 08351_ Acquired 8 matter. 08390_ Imp. Datajack destroyed. 08409_ Acquired 49 matter. 08445_ Searching scrap... 08445_ Found Microactuators. 08445_ Found 12 Matter. Map ----- +----------------------------------------------------+ | ?????? #####????## ##?????????????##### ## | | ?????? ######## ##?????????????###### ## | | ???????## ######## ##????????????????#### ## | | ???###### ## ### ###????????????????### #### | | ???###### ###?????????????????######## | | ???## ##?????????????????######## | | ???## ### ### ###???????????????????????### | | ???## ### ##### ####???????????????????????#### | | ??? # ! #### ####????? ???????????????????### | | ???### % #######?### ???????????????????## | | ???###### ######??## ?????????????????????? | | ????###### ######## ? ##????????????????? | | ???????### ###### ##?? ## ???????????????? | | ???????### ##?###?? ### ??????????????? | | ???????## ###?#### ## ??????????????? | | ???????## ########### ??????????????? | | ???????##### ######### ???????????????? | | ???????##### ######## ??????????????????? | | ??????????## ##### ##????????????????????? | | ??????????## ###????????????????????? | | ??????????### ##?????????????????????? | | ??????????### #### ###????????????????????? | | ???????????### ###### ####???????????????????? | | ???????????############ ####??????????????????? | | ????????????######??### ###??????????????????? | | ????????????????????## @$ ####????????????????? | | ????????????????????## ##????????????????? | | ????????????????????### ##????????????????? | | ????????????????????###### ##????????????????? | | ?????????????????????##### ????????????????? | | ??????????????????????????p$ ##???????????? | | ?????????????????????????? ###### ##???????????? | | ??????????????????????????p ###### ##???????????? | | ?????????????????????????? #???? ##???????????? | | ??????????????????????????? ??????????????????? | | ??????????????????????????? ??????????????????? | | ??????????????????????????? ??????????????????? | | ??????????????????????????? ?????????????????? | | ??????????????????????????? ?????????????????? | | ???????????????????????????? ???????????????????? | | ?????????????????????????????????????????????????? | | ?????????????????????????????????????????????????? | | ?????????????????????????????????????????????????? | | ?????????????????????????????????????????????????? | | ?????????????????????????????????????????????????? | | ?????????????????????????????????????????????????? | | ?????????????????????????????????????????????????? | | ?????????????????????????????????????????????????? | | ?????????????????????????????????????????????????? | | ?????????????????????????????????????????????????? | +----------------------------------------------------+ Best States ------------- Heat Dissipation 53 Energy Generation 14 Energy Capacity 280 Matter Stores 300 Matter Capacity 300 Sight Range 16 Terrain Scan Density 10 Armor Coverage 225 Propulsion Shielding 90 Utility Shielding 90 Evasion (%) 64 Targeting Accuracy 8 Recoil Reduction 4 Offensive Hacking 68 Defensive Hacking 14 Authchip Count 1 Trap Extractor Capacity 6 Item Schematics ----------------- Hacking Suite | -9/Materials | Scanalyzed Imp. Flight Unit | -9/Materials | Scanalyzed Imp. Hacking Suite | -7/Factory | Hacked Imp. System Shield | -7/Factory | Hacked Adv. Hacking Suite | -7/Factory | Scanalyzed Adv. System Shield | -7/Factory | Hacked Exp. Utility Shielding | -7/Factory | Hacked Exp. Propulsion Shielding | -6/Factory | Hacked Exp. Weapon Shielding | -6/Factory | Hacked Combat Drone Bay | -6/Data Miner | Free Lgt. Regenerative Plating | -6/Data Miner | Free Cld. Nuclear Pulse Thruster | -6/Data Miner | Free Prc. Energy Filter | -6/Data Miner | Free Hvy. Proton Missile Launcher | -6/Data Miner | Free Adv. Surge Thruster | -6/Data Miner | Free Adv. Actuator Array | -6/Data Miner | Free Railgun | -6/Data Miner | Free Imp. Kinecellerator | -6/Data Miner | Free Adv. Particle Charger | -6/Data Miner | Free Quantum Rifle | -6/Data Miner | Free Robot Schematics ------------------ H-66 Slayer | -6/Data Miner | Free R-10 Processor | -6/Data Miner | Free Y-64 Sentinel | -6/Data Miner | Free L-41 Fighter | -6/Data Miner | Free H-77 Assassin | -6/Data Miner | Free Fabricated ------------ Imp. Hacking Suite | x1 | -7/Factory | Authchip Imp. Hacking Suite | x1 | -7/Factory Imp. Hacking Suite | x1 | -7/Factory Imp. System Shield | x1 | -7/Factory Adv. Hacking Suite | x1 | -7/Factory Adv. Hacking Suite | x1 | -7/Factory Adv. Hacking Suite | x1 | -7/Factory Adv. System Shield | x1 | -7/Factory Exp. Utility Shielding | x1 | -7/Factory Exp. Propulsion Shielding | x1 | -6/Factory Alien Tech Used ----------------- None Achievements -------------- None Challenges ------------ None Game ------ Seed ScanTiamatDisintegrator Manual? 0 Play Time 01:04:32 Cumulative 890.1 hours Start 2024.03.24 @ 10:59:30 End 2024.03.24 @ 15:07:26 Sessions 5 Manual Loads 0 Difficulty Rogue Special Mode None Game No. 1358 Rogue 1358 Adventurer 0 Explorer 0 Win Type - Total 85 Types 51/1/14/14/4/0/0/1/0 Lore% 90 Gallery% 92 Achievement% 85 Wizard Run 0 Options --------- Layout 0 ASCII 1 Keyboard 0 Movement Numpad Keybinds 0 Fullscreen 2 Font 18/SmallcapsGlow Map View 76x50 Zoom Use 0% Tactical HUD 1 Map Filters NONE Filters NONE Steam 1 RUN: bf010e13-f622-4973-91e3-066d63269fb6